fUSD/lending_fUSD_20240827
["ID","MTS","AMOUNT","RATE_DAILY","PERIOD"]
[336195079,1724730633870,-500.0,0.00010999,2]
[336195080,1724730633880,-500.0,0.00010999,2]
[336195081,1724730633891,-500.0,0.00010999,2]
[336195082,1724730633901,-500.0,0.00010999,2]
[336195083,1724730633911,-500.0,0.00010999,2]
[336195084,1724730633920,-500.0,0.00010999,2]
[336195085,1724730633929,-500.0,0.00010999,2]
[336195086,1724730633938,-500.0,0.00010999,2]
[336195087,1724730633948,-557.9,0.00010999,2]
[336195088,1724730633958,-500.0,0.00010999,2]
[336195089,1724730633967,-500.0,0.00010999,2]
[336195090,1724730633976,-500.0,0.00010999,2]
[336195091,1724730633986,-500.0,0.00010999,2]
[336195092,1724730633995,-500.0,0.00010999,2]
[336195093,1724730634004,-500.0,0.00010999,2]
[336195094,1724730634015,-500.0,0.00010999,2]
[336195095,1724730634025,-623.18302892,0.00010999,2]
[336195096,1724730634034,-500.0,0.00010999,2]
[336195097,1724730634044,-500.0,0.00010999,2]
[336195098,1724730634053,-500.0,0.00010999,2]
[336195099,1724730634063,-500.0,0.00010999,2]
[336195100,1724730634072,-500.0,0.00010999,2]
[336195101,1724730634082,-500.0,0.00010999,2]
[336195102,1724730634092,-500.0,0.00010999,2]
[336195103,1724730634101,-449.65,0.00010999,2]
[336195104,1724730634115,-25887.31671854,0.00011,2]
[336195105,1724730634124,-54976.5022584,0.00011,2]
[336195106,1724730634137,-4994.44875465,0.00011,2]
[336195110,1724730638391,-516.13059219,0.00010852,2]
[336195111,1724730638400,-1024.58861413,0.00010979,2]
[336195112,1724730638409,-21945.87717837,0.00011,2]
[336195113,1724730638420,-25498.52435851,0.00011,2]
[336195114,1724730638432,-4982.46209249,0.00011,2]
[336195115,1724730638453,-3733.51914188,0.00011,2]
[336195126,1724730640268,-7971.90000001,0.00011,2]
[336195127,1724730640383,-1424.0,0.00011,2]
[336195128,1724730640394,-276.91061512,0.00011,2]
[336195129,1724730640442,-9472.69713759,0.00011,2]
[336195130,1724730640562,-1819.20996264,0.00011,2]
[336195131,1724730640574,-1003.50055156,0.00011,2]
[336195132,1724730640585,-4564.99427688,0.00011,2]
[336195133,1724730640596,-419.77238971,0.00011,2]
[336195134,1724730640607,-1656.58520388,0.00011,2]
[336195135,1724730640618,-8310.90522579,0.00011,2]
[336195136,1724730640630,-500.0,0.00011,2]
[336195137,1724730640682,-469.05066728,0.00011,2]
[336195138,1724730640694,-548.10622179,0.00011,2]
[336195139,1724730640707,-495.98082769,0.00011,2]
[336195140,1724730640718,-3730.46532221,0.00011,2]
[336195141,1724730640730,-1216.15843688,0.00011,2]
[336195200,1724730646380,-1058.70623904,0.00011,2]
[336195201,1724730646437,-573.27155235,0.00011,2]
[336195202,1724730646497,-276.345,0.00011,2]
[336195203,1724730646557,-1367.99179144,0.00011,2]
[336195204,1724730646572,-580.59172386,0.00011,2]
[336195206,1724731038564,10000.0,0.0001,2]
[336195207,1724731060541,5000.0,0.0001,2]
[336195208,1724731170625,269.14,8.259e-05,2]
[336195209,1724731412988,298.59101924,9.999e-05,2]
[336195210,1724731606305,455.94,9.984e-05,2]
[336195211,1724731638898,3205.91352612,9.999e-05,2]
[336195212,1724731687275,408.33137705,9.999e-05,2]
[336195213,1724731708775,270.7,8.219e-05,2]
[336195226,1724731814453,270.75661,9.962e-05,2]
[336195243,1724731831373,-319.34,0.00010059,2]
[336195246,1724731831383,-187.45,0.00010093,2]
[336195249,1724731831395,-544.06,0.00010181,2]
[336195254,1724731831407,-23728.92891169,0.00010388,2]
[336195257,1724731831416,-201.64,0.00010389,2]
[336195259,1724731831426,-270.7,0.00010478,2]
[336195261,1724731831436,-1649.94058396,0.00010566,2]
[336195263,1724731831446,-1276.69480859,0.00010699,2]
[336195265,1724731831455,-1995.10485568,0.00010699,2]
[336195266,1724731831465,-3944.21434876,0.00010699,2]
[336195267,1724731831474,-150.0,0.00010799,2]
[336195268,1724731831485,-150.0,0.000108,2]
[336195269,1724731831494,-357.05,0.000108,2]
[336195270,1724731831505,-150.0,0.000108,2]
[336195271,1724731831514,-427.02,0.000108,2]
[336195272,1724731831523,-357.05,0.000108,2]
[336195273,1724731831534,-531.76,0.000108,2]
[336195274,1724731831545,-150.0,0.000108,2]
[336195275,1724731831555,-531.76,0.000108,2]
[336195276,1724731831566,-531.71,0.000108,2]
[336195277,1724731831575,-421.66,0.000108,2]
[336195278,1724731831585,-713.27,0.000108,2]
[336195279,1724731831595,-499.99,0.000108,2]
[336195280,1724731831606,-879.35374974,0.00010852,2]
[336195281,1724731831615,-654.121857,0.00010861,2]
[336195282,1724731831626,-485.95604284,0.00010862,2]
[336195283,1724731831635,-534.43174668,0.00010862,2]
[336195284,1724731831644,-155.0,0.00010862,2]
[336195285,1724731831666,-156.02339283,0.00010888,2]
[336195286,1724731831675,-163.28497273,0.00010888,2]
[336195287,1724731831684,-348.17734879,0.00010888,2]
[336195288,1724731831694,-329.57850842,0.0001089,2]
[336195289,1724731831703,-403.96812411,0.0001089,2]
[336195290,1724731831712,-219.05448022,0.00010899,2]
[336195291,1724731831721,-266.6719,0.000109,2]
[336195292,1724731831732,-471.6136,0.000109,2]
[336195293,1724731831741,-368.5375,0.000109,2]
[336195295,1724731831750,-427.02,0.000109,2]
[336195297,1724731831759,-531.76,0.000109,2]
[336195306,1724731831769,-357.05,0.000109,2]
[336195307,1724731831997,-150.0,0.000109,2]
[336195308,1724731832007,-531.76,0.000109,2]
[336195309,1724731832016,-716.55,0.000109,2]
[336195310,1724731832026,-300.0,0.000109,2]
[336195311,1724731832035,-427.02,0.000109,2]
[336195312,1724731832045,-853.82,0.000109,2]
[336195313,1724731832054,-150.0,0.000109,2]
[336195314,1724731832063,-1063.24,0.000109,2]
[336195315,1724731832073,-426.98,0.000109,2]
[336195316,1724731832083,-303.2,0.000109,2]
[336195317,1724731832093,-479.62,0.000109,2]
[336195318,1724731832102,-212.72,0.000109,2]
[336195319,1724731832112,-2000.0,0.00010959,2]
[336195320,1724731832122,-150.51,0.00010959,2]
[336195321,1724731832132,-250.0,0.00010959,2]
[336195322,1724731832141,-155.0,0.00010979,2]
[336195323,1724731832151,-155.0,0.00010979,2]
[336195324,1724731832161,-231.77145804,0.00010979,2]
[336195325,1724731832171,-234.0,0.0001099,2]
[336195326,1724731832180,-150.0,0.00010997,2]
[336195327,1724731832190,-150.0,0.00010997,2]
[336195328,1724731832199,-150.0,0.00010997,2]
[336195329,1724731832209,-150.0,0.00010997,2]
[336195330,1724731832218,-150.0,0.00010997,2]
[336195331,1724731832227,-3731.5849234,0.00010997,2]
[336195332,1724731832237,-938.0321515,0.00010997,2]
[336195333,1724731832246,-383.2798676,0.00010997,2]
[336195334,1724731832255,-658.9444035,0.00010997,2]
[336195335,1724731832265,-150.0,0.00010998,2]
[336195336,1724731832275,-150.0,0.00010998,2]
[336195337,1724731832284,-150.0,0.00010998,2]
[336195338,1724731832293,-150.0,0.00010998,2]
[336195339,1724731832303,-150.0,0.00010998,2]
[336195340,1724731832318,-3941.84070096,0.00010999,2]
[336195341,1724731832327,-500.0,0.00010999,2]
[336195342,1724731832337,-500.0,0.00010999,2]
[336195343,1724731832347,-500.0,0.00010999,2]
[336195344,1724731832357,-300.0,0.00011,2]
[336195345,1724731832367,-93093.27715594,0.00011,2]
[336195346,1724731832379,-12956.23460994,0.00011,2]
[336195347,1724731832391,-544.57707993,0.00011,2]
[336195348,1724731832404,-418.54007673,0.00011,2]
[336195349,1724731832415,-837.82808505,0.00011,2]
[336195350,1724731832430,-811.05669613,0.00011,2]
[336195351,1724731832442,-332.00402255,0.00011,2]
[336195352,1724731832763,807.72373681,0.0001,2]
[336195353,1724731832910,164.71703924,9.962e-05,2]
[336195354,1724731837698,-155.84148425,0.00010999,2]
[336195355,1724731837708,-535.43351575,0.00011,2]
[336195550,1724731839682,-315.47,0.00011,2]
[336195856,1724731842666,-257.11059113,0.00010888,2]
[336195858,1724731842675,-7420.69507759,0.00011,2]
[336197273,1724731857090,203.42899612,9.962e-05,2]
[336198038,1724731865555,1487.57266228,9.962e-05,2]
[336198252,1724731868217,5442.42205919,9.962e-05,2]
[336198254,1724732308387,1050.0,0.0001,2]
[336198255,1724732432456,288.74,8.219e-05,2]
[336198256,1724732472566,348.96330843,9.999e-05,2]
[336198257,1724732685525,364.76,9.99e-05,2]
[336198258,1724732700547,300.0,0.0001,2]
[336198259,1724732708333,188.74,9.989e-05,2]
[336198260,1724732709123,182.2245088,9.959e-05,2]
[336198263,1724732760444,300.0,0.0001,2]
[336198264,1724732761630,300.0,0.0001,2]
[336198265,1724732769670,3940.15,9.956e-05,2]
[336198266,1724732821382,300.0,0.0001,2]
[336198281,1724732843868,408.33137705,9.999e-05,2]
[336198284,1724732878161,875.82,9.96e-05,2]
[336198285,1724732910595,274.3,8.219e-05,2]
[336198299,1724732942060,300.0,0.0001,2]
[336198300,1724732959441,629.05909233,9.999e-05,2]
[336198301,1724732961324,187.45,9.972e-05,2]
[336198304,1724733028341,255.47,9.962e-05,2]
[336198314,1724733031792,-9784.12841718,0.00010001,2]
[336198315,1724733031804,-1217.17158282,0.00010001,2]
[336198316,1724733031814,-572.10234085,0.00010026,2]
[336198317,1724733031826,-704.59246774,0.00010026,2]
[336198318,1724733031835,-201.66,0.00010059,2]
[336198319,1724733031845,-635.24,0.00010141,2]
[336198320,1724733031855,-173.66,0.0001034,2]
[336198321,1724733031864,-274.3,0.00010474,2]
[336198322,1724733031873,-87.27132163,0.00010485,2]
[336198323,1724733031884,-86.60170437,0.00010485,2]
[336198324,1724733031893,-1106.60774473,0.00010566,2]
[336198325,1724733031904,-2884.82922423,0.00010566,2]
[336198326,1724733037667,-786.56901356,0.00010566,2]
[336198327,1724733037828,-371.91569528,0.00010566,2]
[336198328,1724733037837,-427.02,0.000107,2]
[336198329,1724733037846,-150.0,0.000107,2]
[336198330,1724733037855,-427.02,0.000107,2]
[336198331,1724733037865,-150.0,0.000107,2]
[336198332,1724733037875,-357.05,0.000107,2]
[336198333,1724733037885,-427.02,0.000107,2]
[336198334,1724733037894,-357.05,0.000107,2]
[336198335,1724733037904,-357.05,0.000107,2]
[336198336,1724733037917,-426.82,0.000107,2]
[336198337,1724733037927,-804.23,0.000108,2]
[336198338,1724733037936,-206.02208342,0.000108,2]
[336198339,1724733037948,-94.27791658,0.000108,2]
[336198340,1724733037959,-427.02,0.000108,2]
[336198341,1724733037969,-300.83,0.000108,2]
[336198342,1724733037979,-167.86,0.000108,2]
[336198343,1724733037988,-356.77,0.000108,2]
[336198344,1724733037999,-2.85443803,0.000108,2]
[336198345,1724733038010,-147.14556197,0.000108,2]
[336198346,1724733038020,-499.99,0.000108,2]
[336198347,1724733038029,-186.52035697,0.00010862,2]
[336198348,1724733038038,-223.49375271,0.00010862,2]
[336198349,1724733038047,-155.30432901,0.00010888,2]
[336198350,1724733038057,-357.4813523,0.00010888,2]
[336198351,1724733038066,-155.2635198,0.0001089,2]
[336198352,1724733038075,-155.0,0.0001089,2]
[336198353,1724733038085,-155.0,0.0001089,2]
[336198354,1724733038095,-367.82648498,0.00010899,2]
[336198355,1724733038104,-155.0,0.00010899,2]
[336198356,1724733038115,-12925.8067,0.000109,2]
[336198357,1724733038125,-500.0,0.00010949,2]
[336198358,1724733038135,-602457.80889669,0.0001095,3]
[336198495,1724733039817,-19375.68017879,0.0001095,3]
[336198498,1724733039828,-661.0,0.0001095,3]
[336198520,1724733040034,-6309.1,0.0001095,3]
[336198861,1724733042843,-864.15,0.00010204,2]
[336198864,1724733042853,-635.8192291,0.0001095,3]
[336198875,1724733042899,-115825.03826475,0.0001095,3]
[336198888,1724733043011,-1305.44995977,0.0001095,3]
[336201403,1724733088178,500.0,8.464e-05,2]
[336201404,1724733089752,501.02183909,8.464e-05,2]
[336201405,1724733106473,500.0,8.464e-05,2]
[336201406,1724733106519,500.0,8.464e-05,2]
[336201407,1724733107903,500.0,8.464e-05,2]
[336201408,1724733203361,500.0,8.464e-05,2]
[336201409,1724733205879,500.0,8.22e-05,2]
[336201410,1724733213538,500.0,8.464e-05,2]
[336201411,1724733215288,500.0,9.834e-05,2]
[336201412,1724733245923,447.2,0.0001,2]
[336201413,1724733311238,212.97,0.0001,2]
[336201415,1724733402325,23900.0,9.983e-05,2]
[336201416,1724733407111,277.16,8.219e-05,2]
[336201417,1724733505805,279.11,0.0001,2]
[336201418,1724733508008,195.62,9.972e-05,2]
[336201419,1724733514977,207.05,9.972e-05,2]
[336201420,1724733529916,19813.88896059,0.0001,2]
[336201421,1724733548912,435.6996,9.908e-05,2]
[336201422,1724733571103,500.0,0.0001,2]
[336201423,1724733571864,500.0,0.0001,2]
[336201424,1724733601447,1005.04594099,0.0001,2]
[336201425,1724733612844,1005.04594099,0.0001,3]
[336201426,1724733622808,966.68058742,0.0001,4]
[336201427,1724733643583,500.0,9.954e-05,2]
[336201428,1724733659824,1309.23,9.968e-05,2]
[336201429,1724733725379,250.0,9.951e-05,2]
[336201430,1724733736234,312.34,9.951e-05,2]
[336201431,1724733751250,2583.2377,9.908e-05,2]
[336201432,1724733778752,291.81,9.961e-05,2]
[336201433,1724733977731,293.74,8.219e-05,2]
[336201434,1724734014019,155.45065716,9.962e-05,2]
[336201437,1724734040919,187.36,9.945e-05,2]
[336201442,1724734054509,408.33137705,9.999e-05,2]
[336201443,1724734075505,195.64,9.943e-05,2]
[336201444,1724734088900,200.0,9.952e-05,2]
[336201445,1724734111774,1050.0,0.0001,2]
[336201446,1724734140427,1259.222228,9.999e-05,2]
[336201447,1724734161391,295.20003038,9.999e-05,2]
[336201452,1724734181513,2372.47,9.944e-05,2]
[336201456,1724734211626,1358.5,9.921e-05,2]
[336201457,1724734224290,5181.63310082,9.999e-05,2]
[336201465,1724734231713,-379.883591,0.00010001,2]
[336201466,1724734231725,-285.2606,0.00010001,2]
[336201467,1724734231768,-129.855809,0.00010001,2]
[336201468,1724734231778,-708.19,0.00010009,2]
[336201469,1724734231787,-236.82544287,0.00010026,2]
[336201470,1724734231796,-603.13022988,0.00010097,2]
[336201471,1724734231806,-381.85635721,0.00010097,2]
[336201472,1724734231815,-529.27299633,0.00010097,2]
[336201473,1724734231824,-300.0,0.00010449,2]
[336201474,1724734231845,-795.0,0.0001045,2]
[336201475,1724734231854,-4748.50832519,0.00010463,7]
[336201476,1724734231865,-300.0,0.00010463,7]
[336201477,1724734231876,-712.8352503,0.00010463,7]
[336201478,1724734231886,-404.0,0.00010463,7]
[336201479,1724734231940,-4699.65642451,0.00010463,7]
[336201480,1724734231949,-293.74,0.00010472,2]
[336201481,1724734231959,-499.99,0.00010566,2]
[336201482,1724734231968,-822.41357549,0.00010566,2]
[336201483,1724734231998,-228.95642451,0.00010566,2]
[336201484,1724734232007,-43.31657549,0.000108,2]
[336201485,1724734232019,-747.80342451,0.000108,2]
[336201486,1724734232028,-265.47556138,0.000108,2]
[336201487,1724734232040,-580.85443862,0.000108,2]
[336201488,1724734232050,-60.16556138,0.0001085,2]
[336201498,1724734238009,-1276.92015921,0.00010699,2]
[336201499,1724734238019,-1628.29383862,0.0001085,2]
[336201500,1724734238028,-155.20691994,0.00010861,2]
[336201501,1724734238037,-160.22974672,0.00010862,2]
[336201502,1724734238047,-155.0,0.00010862,2]
[336201503,1724734238055,-168.21482124,0.00010888,2]
[336201504,1724734238064,-432.5166998,0.00010888,2]
[336201505,1724734238074,-155.24508963,0.0001089,2]
[336201506,1724734238086,-1586.09501,0.000109,2]
[336201507,1724734238095,-150.0,0.00010948,2]
[336201508,1724734238104,-500.0,0.00010949,2]
[336201509,1724734238114,-1586.09501,0.00010949,2]
[336201510,1724734238123,-1586.09501,0.00010949,2]
[336201511,1724734238132,-200.0,0.0001095,2]
[336201512,1724734238142,-500.0,0.00010957,2]
[336201513,1724734238151,-500.0,0.00010958,2]
[336201514,1724734238161,-2000.0,0.00010959,2]
[336201515,1724734238174,-241.36,0.00010959,2]
[336201516,1724734238184,-162.23,0.00010959,2]
[336201517,1724734238193,-153.83,0.00010959,2]
[336201518,1724734238202,-250.0,0.00010959,2]
[336201519,1724734238213,-500.0,0.0001096,2]
[336201520,1724734238222,-1586.09501,0.0001098,2]
[336201521,1724734238232,-934.02330682,0.00010988,2]
[336201522,1724734238242,-1006.0,0.0001099,2]
[336201523,1724734238252,-1000.0,0.0001099,2]
[336201524,1724734238263,-1000.0,0.0001099,2]
[336201525,1724734238272,-1000.0,0.0001099,2]
[336201526,1724734238283,-1000.0,0.0001099,3]
[336201527,1724734238293,-1000.0,0.0001099,3]
[336201528,1724734238303,-1002.0,0.0001099,2]
[336201529,1724734238313,-1000.0,0.0001099,2]
[336201530,1724734238322,-1000.0,0.0001099,3]
[336201531,1724734238332,-1002.0,0.0001099,2]
[336201532,1724734238341,-1000.0,0.0001099,2]
[336201533,1724734238349,-1000.0,0.0001099,3]
[336201534,1724734238359,-1000.0,0.0001099,2]
[336201535,1724734238368,-1000.0,0.0001099,2]
[336201536,1724734238378,-1000.0,0.0001099,2]
[336201537,1724734238387,-1000.0,0.0001099,2]
[336201538,1724734238397,-1000.0,0.0001099,2]
[336201539,1724734238406,-1000.0,0.0001099,2]
[336201541,1724734238416,-1000.0,0.0001099,2]
[336201543,1724734238425,-1000.0,0.0001099,2]
[336201545,1724734238434,-1000.0,0.0001099,2]
[336201547,1724734238443,-1000.0,0.0001099,2]
[336201548,1724734238452,-1000.0,0.0001099,2]
[336201550,1724734238462,-1000.0,0.0001099,2]
[336201552,1724734238471,-1000.0,0.0001099,2]
[336201554,1724734238481,-1000.0,0.0001099,2]
[336201556,1724734238490,-1000.0,0.0001099,2]
[336201558,1724734238500,-1000.0,0.0001099,2]
[336201575,1724734238686,-1000.0,0.0001099,2]
[336201577,1724734238701,-1000.0,0.0001099,2]
[336201579,1724734238711,-1000.0,0.0001099,2]
[336201581,1724734238720,-1000.0,0.0001099,2]
[336201582,1724734238730,-1000.0,0.0001099,2]
[336201584,1724734238740,-1000.0,0.0001099,2]
[336201586,1724734238749,-1000.0,0.0001099,2]
[336201588,1724734238759,-1000.0,0.0001099,2]
[336201590,1724734238768,-1000.0,0.0001099,2]
[336201592,1724734238778,-1000.0,0.0001099,2]
[336201594,1724734238787,-1000.0,0.0001099,2]
[336201595,1724734238797,-1000.0,0.0001099,2]
[336201597,1724734238807,-1000.0,0.0001099,2]
[336201599,1724734238817,-1000.0,0.0001099,2]
[336201601,1724734238827,-1000.0,0.0001099,2]
[336201603,1724734238836,-1000.0,0.0001099,2]
[336201604,1724734238845,-1000.0,0.0001099,2]
[336201606,1724734238855,-1000.0,0.0001099,2]
[336201608,1724734238865,-1000.0,0.0001099,2]
[336201610,1724734238875,-1000.0,0.0001099,2]
[336201612,1724734238884,-1000.0,0.0001099,2]
[336201613,1724734238893,-1000.0,0.0001099,2]
[336201615,1724734238903,-1000.0,0.0001099,2]
[336201617,1724734238912,-1000.0,0.0001099,2]
[336201619,1724734238921,-1000.0,0.0001099,2]
[336201621,1724734238930,-1000.0,0.0001099,2]
[336201623,1724734238939,-1000.0,0.0001099,2]
[336201625,1724734238949,-1000.0,0.0001099,2]
[336201626,1724734238958,-1000.0,0.0001099,2]
[336201628,1724734238968,-1000.0,0.0001099,2]
[336201630,1724734238977,-1000.0,0.0001099,2]
[336201632,1724734238987,-1000.0,0.0001099,2]
[336201634,1724734238996,-1000.0,0.0001099,2]
[336201635,1724734239006,-1000.0,0.0001099,2]
[336201637,1724734239015,-1000.0,0.0001099,2]
[336201639,1724734239026,-1000.0,0.0001099,2]
[336201641,1724734239035,-1000.0,0.0001099,2]
[336201643,1724734239045,-1000.0,0.0001099,2]
[336201644,1724734239055,-1000.0,0.0001099,2]
[336201646,1724734239064,-1000.0,0.0001099,2]
[336201648,1724734239073,-1000.0,0.0001099,2]
[336201650,1724734239083,-1000.0,0.0001099,2]
[336201652,1724734239093,-1000.0,0.0001099,2]
[336201654,1724734239102,-1000.0,0.0001099,2]
[336201655,1724734239111,-1000.0,0.0001099,2]
[336201657,1724734239120,-1000.0,0.0001099,2]
[336201659,1724734239130,-1000.0,0.0001099,2]
[336201661,1724734239139,-1000.0,0.0001099,2]
[336201663,1724734239148,-1000.0,0.0001099,2]
[336201665,1724734239158,-1000.0,0.0001099,2]
[336201667,1724734239173,-1000.0,0.0001099,2]
[336201669,1724734239182,-1000.0,0.0001099,2]
[336201671,1724734239191,-1000.0,0.0001099,2]
[336201673,1724734239200,-1000.0,0.0001099,2]
[336201674,1724734239210,-1000.0,0.0001099,2]
[336201676,1724734239219,-1000.0,0.0001099,2]
[336201678,1724734239229,-1000.0,0.0001099,2]
[336201680,1724734239239,-1000.0,0.0001099,2]
[336201682,1724734239250,-1000.0,0.0001099,2]
[336201684,1724734239259,-1000.0,0.0001099,2]
[336201686,1724734239269,-1000.0,0.0001099,2]
[336201687,1724734239278,-1000.0,0.0001099,2]
[336201689,1724734239288,-1000.0,0.0001099,2]
[336201691,1724734239297,-1000.0,0.0001099,2]
[336201693,1724734239307,-1000.0,0.0001099,2]
[336201695,1724734239317,-1000.0,0.0001099,2]
[336201697,1724734239327,-1000.0,0.0001099,2]
[336201698,1724734239337,-1000.0,0.0001099,2]
[336201700,1724734239347,-1000.0,0.0001099,2]
[336201702,1724734239356,-1000.0,0.0001099,2]
[336201704,1724734239366,-1000.0,0.0001099,2]
[336201706,1724734239375,-1000.0,0.0001099,2]
[336201708,1724734239385,-1000.0,0.0001099,2]
[336201710,1724734239395,-1000.0,0.0001099,2]
[336201712,1724734239405,-1000.0,0.0001099,2]
[336201713,1724734239415,-1000.0,0.0001099,2]
[336201715,1724734239424,-1000.0,0.0001099,2]
[336201717,1724734239434,-1000.0,0.0001099,2]
[336201719,1724734239443,-1000.0,0.0001099,2]
[336201721,1724734239453,-1000.0,0.0001099,2]
[336201723,1724734239463,-1000.0,0.0001099,2]
[336201724,1724734239473,-780.0,0.0001099,2]
[336201726,1724734239482,-3503.6937215,0.00010993,2]
[336201728,1724734239492,-667.4584878,0.00010993,2]
[336201730,1724734239501,-198.8314484,0.00010993,2]
[336201732,1724734239511,-297.6898252,0.00010993,2]
[336201735,1724734239521,-1790.0494343,0.00010993,2]
[336201737,1724734239531,-150.0,0.00010997,2]
[336201739,1724734239541,-150.0,0.00010997,2]
[336201740,1724734239551,-150.0,0.00010997,2]
[336201742,1724734239561,-150.0,0.00010997,2]
[336201745,1724734239571,-150.0,0.00010997,2]
[336201747,1724734239581,-639.717978,0.00010997,2]
[336201748,1724734239590,-376.31419828,0.00010998,2]
[336201749,1724734239600,-221.88060144,0.00010998,2]
[336201750,1724734239610,-150.0,0.00010998,2]
[336201751,1724734239619,-150.0,0.00010998,2]
[336201752,1724734239629,-150.0,0.00010998,2]
[336201753,1724734239638,-150.0,0.00010998,2]
[336201754,1724734239648,-150.0,0.00010998,2]
[336201755,1724734239657,-500.0,0.00010998,2]
[336201756,1724734239666,-500.0,0.00010998,2]
[336201757,1724734239676,-500.0,0.00010998,2]
[336201758,1724734239685,-500.0,0.00010998,2]
[336201759,1724734239695,-500.0,0.00010998,2]
[336201760,1724734239704,-312.43995733,0.00010998,2]
[336201761,1724734239714,-500.0,0.00010998,2]
[336201762,1724734239724,-500.0,0.00010998,2]
[336201763,1724734239734,-500.0,0.00010998,2]
[336201764,1724734239743,-500.0,0.00010998,2]
[336201765,1724734239753,-500.0,0.00010998,2]
[336201766,1724734239762,-500.0,0.00010998,2]
[336201767,1724734239771,-500.0,0.00010998,2]
[336201768,1724734239780,-679.11,0.00010998,2]
[336201769,1724734239790,-500.0,0.00010998,2]
[336201771,1724734239799,-500.0,0.00010998,2]
[336201772,1724734239808,-500.0,0.00010998,2]
[336201773,1724734239817,-500.0,0.00010998,2]
[336201774,1724734239826,-500.0,0.00010998,2]
[336201775,1724734239836,-500.0,0.00010998,2]
[336201777,1724734239845,-409.1445957,0.00010998,2]
[336201778,1724734239854,-500.0,0.00010998,2]
[336201780,1724734239864,-500.0,0.00010998,2]
[336201782,1724734239873,-722.68388932,0.00010998,2]
[336201784,1724734239883,-242.18939926,0.00010999,2]
[336201786,1724734239892,-500.0,0.00010999,2]
[336201788,1724734239901,-500.0,0.00010999,2]
[336201790,1724734239911,-500.0,0.00010999,2]
[336201792,1724734239921,-500.0,0.00010999,2]
[336201794,1724734239930,-500.0,0.00010999,2]
[336201796,1724734239940,-416.10696634,0.00010999,2]
[336201798,1724734239949,-156.6855,0.00010999,2]
[336201800,1724734239958,-151.0,0.00010999,2]
[336201801,1724734239968,-151.0,0.00010999,2]
[336201803,1724734239977,-151.0,0.00010999,2]
[336201805,1724734239987,-151.0,0.00010999,2]
[336201807,1724734239996,-157.134168,0.00010999,2]
[336201809,1724734240006,-157.134168,0.00010999,2]
[336201811,1724734240015,-275.674168,0.00010999,2]
[336201813,1724734240025,-275.674168,0.00010999,2]
[336201815,1724734240034,-185.407638,0.00010999,2]
[336201817,1724734240044,-185.407638,0.00010999,2]
[336201819,1724734240053,-151.0,0.00010999,2]
[336201821,1724734240063,-151.0,0.00010999,2]
[336201823,1724734240072,-151.0,0.00010999,2]
[336201825,1724734240082,-151.0,0.00010999,2]
[336201827,1724734240091,-367.50383492,0.00010999,2]
[336201829,1724734240101,-669.244627,0.00010999,2]
[336201831,1724734240110,-151.0,0.00010999,2]
[336201833,1724734240120,-669.244627,0.00010999,2]
[336201835,1724734240129,-1301.841476,0.00010999,2]
[336201837,1724734240138,-1301.841476,0.00010999,2]
[336201839,1724734240148,-155.531117,0.00010999,2]
[336201841,1724734240159,-500.0,0.00010999,2]